fUSD/lending_fUSD_20260107
["ID","MTS","AMOUNT","RATE_DAILY","PERIOD"]
[400638224,1767757840968,-922.64,0.00018144,2]
[400638226,1767757840978,-166.66,0.00018208,2]
[400638228,1767757840987,-1496.63,0.00018394,2]
[400638230,1767757840996,-549.42963918,0.00018521,2]
[400638232,1767757841005,-501.13930281,0.00018521,2]
[400638234,1767757841015,-1000.0,0.00018521,2]
[400638236,1767757841023,-1000.0,0.00018521,2]
[400638237,1767757841032,-1000.0,0.00018521,2]
[400638239,1767757841041,-1000.0,0.00018521,2]
[400638241,1767757841051,-1000.0,0.00018521,2]
[400638243,1767757841060,-1000.0,0.00018521,2]
[400638245,1767757841070,-506.68069566,0.00018521,2]
[400638246,1767757841081,-1000.0,0.00018521,2]
[400638248,1767757841090,-1000.0,0.00018521,2]
[400638250,1767757841099,-524.05521125,0.00018521,2]
[400638252,1767757841108,-500.99,0.000186,2]
[400638253,1767757841117,-51034.2539966,0.00018623,2]
[400638255,1767757841127,-9444.7744727,0.00018624,2]
[400638257,1767757841135,-1496.63,0.00018668,2]
[400638258,1767757841144,-166.66,0.00018755,2]
[400638260,1767757841155,-922.64,0.00018756,2]
[400638262,1767757841164,-900.0,0.0001882,2]
[400638264,1767757841173,-2647.6,0.00018912,2]
[400638266,1767757841181,-1496.63,0.00018942,2]
[400638268,1767757841190,-182.79,0.00018943,2]
[400638270,1767757841199,-1134.76034327,0.00019,2]
[400638271,1767757841208,-421.064646,0.00019,2]
[400638273,1767757841216,-300.0,0.00019,2]
[400638275,1767757841225,-33703.08466791,0.00019,2]
[400638276,1767757841235,-6282.765631,0.00019,2]
[400638278,1767757841243,-1196.89594249,0.00019068,2]
[400638280,1767757841254,-1500.0,0.00019068,2]
[400638282,1767757841264,-1500.0,0.00019068,2]
[400638284,1767757841273,-504.95792057,0.00019068,2]
[400638286,1767757841282,-1500.0,0.00019068,2]
[400638288,1767757841291,-1515.80661824,0.00019068,2]
[400638290,1767757841300,-1500.0,0.00019068,2]
[400638291,1767757841309,-1500.0,0.00019068,2]
[400638293,1767757841318,-200.20814191,0.00019082,2]
[400638295,1767757841328,-11387.2812673,0.00019163,2]
[400638297,1767757841336,-2107.4140406,0.00019165,2]
[400638299,1767757841346,-918.55616797,0.00019178,2]
[400638301,1767757841355,-1948.565341,0.00019178,2]
[400638303,1767757841363,-1948.565341,0.00019178,2]
[400638305,1767757841372,-1948.565341,0.00019178,2]
[400638306,1767757841381,-1948.565341,0.00019178,2]
[400638308,1767757841390,-1496.69217979,0.00019216,2]
[400638310,1767757841400,-166.66,0.00019302,2]
[400638312,1767757841409,-587.0,0.00019358,2]
[400638314,1767757841423,-2351.0,0.00019553,2]
[400638316,1767757841433,-2000.0,0.00019616,2]
[400638318,1767757841442,-2000.0,0.00019616,2]
[400638319,1767757841451,-2000.0,0.00019616,2]
[400638321,1767757841460,-2000.0,0.00019616,2]
[400638323,1767757841470,-2000.0,0.00019616,2]
[400638325,1767757841479,-2908.9,0.00019778,2]
[400638327,1767757841488,-154.90963793,0.0001994,2]
[400638329,1767757841498,-162077.17812766,0.0001995,15]
[400638331,1767757841507,-500.0,0.00019973,2]
[400638332,1767757841516,-162.78733852,0.00019973,2]
[400638334,1767757841526,-500.0,0.00019973,2]
[400638336,1767757841535,-500.0,0.00019973,2]
[400638338,1767757841544,-500.0,0.00019973,2]
[400638340,1767757841554,-500.0,0.00019973,2]
[400638342,1767757841563,-557.36379017,0.00019973,2]
[400638343,1767757841572,-500.0,0.00019973,2]
[400638345,1767757841581,-335.45525696,0.00019973,2]
[400638347,1767757841590,-500.0,0.00019973,2]
[400638349,1767757841599,-500.0,0.00019973,2]
[400638351,1767757841608,-500.0,0.00019973,2]
[400638353,1767757841617,-500.0,0.00019973,2]
[400638355,1767757841625,-500.0,0.00019973,2]
[400638356,1767757841634,-502.17223758,0.00019973,2]
[400638358,1767757841644,-500.0,0.00019973,2]
[400638360,1767757841653,-501.18584911,0.00019973,2]
[400638362,1767757841662,-500.0,0.00019973,2]
[400638364,1767757841671,-500.0,0.00019973,2]
[400638366,1767757841680,-500.0,0.00019973,2]
[400638367,1767757841689,-571.71974278,0.00019973,2]
[400638369,1767757841698,-162.67616752,0.00019973,2]
[400638371,1767757841707,-500.0,0.00019973,2]
[400638373,1767757841716,-500.0,0.00019973,2]
[400638375,1767757841725,-500.0,0.00019973,2]
[400638377,1767757841734,-500.0,0.00019973,2]
[400638379,1767757841743,-500.0,0.00019973,2]
[400638380,1767757841752,-500.0,0.00019973,2]
[400638382,1767757841761,-520.15410703,0.00019973,2]
[400638384,1767757841772,-500.0,0.00019973,2]
[400638386,1767757841784,-500.0,0.00019973,2]
[400638388,1767757841792,-500.0,0.00019973,2]
[400638390,1767757841801,-156.92436845,0.00019973,2]
[400638391,1767757841810,-500.0,0.00019973,2]
[400638393,1767757841819,-500.0,0.00019973,2]
[400638395,1767757841828,-500.0,0.00019973,2]
[400638397,1767757841837,-500.0,0.00019973,2]
[400638399,1767757841846,-500.0,0.00019973,2]
[400638400,1767757841855,-500.0,0.00019973,2]
[400638402,1767757841864,-500.0,0.00019973,2]
[400638404,1767757841874,-500.0,0.00019973,2]
[400638406,1767757841883,-500.0,0.00019973,2]
[400638408,1767757841892,-500.0,0.00019973,2]
[400638410,1767757841901,-160.54808318,0.00019973,2]
[400638412,1767757841910,-500.0,0.00019973,2]
[400638413,1767757841919,-500.0,0.00019973,2]
[400638415,1767757841928,-500.0,0.00019973,2]
[400638417,1767757841938,-500.0,0.00019973,2]
[400638419,1767757841947,-524.33264225,0.00019973,2]
[400638421,1767757841956,-500.0,0.00019973,2]
[400638423,1767757841965,-500.0,0.00019973,2]
[400638425,1767757841974,-500.0,0.00019973,2]
[400638426,1767757841984,-501.08390571,0.00019973,2]
[400638428,1767757841994,-510.8338788,0.00019973,2]
[400638430,1767757842003,-500.0,0.00019973,2]
[400638432,1767757842013,-510.43112372,0.00019973,2]
[400638434,1767757842022,-500.0,0.00019973,2]
[400638436,1767757842031,-500.0,0.00019973,2]
[400638437,1767757842040,-207.99924272,0.00019973,2]
[400638439,1767757842049,-500.0,0.00019973,2]
[400638441,1767757842058,-500.0,0.00019973,2]
[400638443,1767757842068,-500.0,0.00019973,2]
[400638445,1767757842077,-162.04925572,0.00019973,2]
[400638446,1767757842086,-500.0,0.00019973,2]
[400638447,1767757842094,-500.0,0.00019973,2]
[400638448,1767757842103,-500.0,0.00019973,2]
[400638449,1767757842112,-161.49145816,0.00019973,2]
[400638450,1767757842121,-484.30085847,0.00019973,2]
[400638451,1767757842129,-554.65014498,0.00019973,2]
[400638452,1767757842138,-500.0,0.00019973,2]
[400638453,1767757842147,-167.34409098,0.00019973,2]
[400638454,1767757842155,-182.62811444,0.00019973,2]
[400638455,1767757842164,-469.74148496,0.00019973,2]
[400638456,1767757842173,-545.792317,0.00019973,2]
[400638457,1767757842182,-502.48161874,0.00019973,2]
[400638458,1767757842191,-164.13748005,0.00019973,2]
[400638459,1767757842200,-1463.88206929,0.0002,5]
[400638460,1767757842209,-5392.49631195,0.0002,5]
[400638469,1767757842303,-153.80059395,0.000179,2]
[400638471,1767757842312,-31944.92498303,0.0002,5]
[400638473,1767757842321,-8300.0,0.0002,4]
[400638475,1767757842330,-375.21061905,0.0002,20]
[400638477,1767757842339,-37728.73148393,0.0002,14]
[400638510,1767757842348,-4572.21053406,0.0002,3]
[400638515,1767757842658,-496.79156664,0.0002,10]
[400638517,1767757842668,-1558.2155058,0.0002,2]
[400638519,1767757842677,-3000.0,0.0002,2]
[400638521,1767757842685,-1000.0,0.0002,7]
[400638523,1767757842694,-510.66,0.000201,7]
[400638525,1767757842704,-1000.0,0.00020136,2]
[400638527,1767757842714,-954.11864465,0.00020164,2]
[400638528,1767757842723,-2500.0,0.00020164,2]
[400638531,1767757842733,-740.72622567,0.00020164,2]
[400638533,1767757842742,-2500.0,0.00020164,2]
[400638535,1767757842751,-1511.91087313,0.00020164,2]
[400638537,1767757842760,-17566.6317577,0.00020286,2]
[400638539,1767757842769,-999.0,0.00020394,3]
[400638541,1767757842779,-250.0,0.0002044,2]
[400638542,1767757842788,-1000.0,0.00020521,2]
[400638544,1767757842797,-1000.0,0.00020521,2]
[400638546,1767757842807,-1000.0,0.00020521,2]
[400638548,1767757842816,-286.84842062,0.00020521,2]
[400638550,1767757842824,-1000.0,0.00020521,2]
[400638552,1767757842834,-933.25363423,0.00020521,2]
[400638554,1767757842843,-609.94892981,0.00020521,2]
[400638557,1767757842853,-1000.0,0.00020521,2]
[400638558,1767757842863,-1000.0,0.00020521,2]
[400638561,1767757842873,-1000.0,0.00020521,2]
[400638563,1767757842882,-1000.0,0.00020521,2]
[400638565,1767757842892,-515.27642925,0.00020521,2]
[400638567,1767757842902,-279.31517583,0.00020521,2]
[400638568,1767757842911,-1000.0,0.00020521,2]
[400638570,1767757842920,-1000.0,0.00020521,2]
[400638572,1767757842929,-1000.0,0.00020521,2]
[400638574,1767757842939,-1000.0,0.00020521,2]
[400638576,1767757842948,-1000.0,0.00020521,2]
[400638578,1767757842957,-1000.0,0.00020521,2]
[400638580,1767757842966,-1000.0,0.00020521,2]
[400638582,1767757842976,-1000.0,0.00020521,2]
[400638584,1767757842985,-1000.0,0.00020521,2]
[400638586,1767757842994,-1000.0,0.00020521,2]
[400638588,1767757843003,-1000.0,0.00020521,2]
[400638590,1767757843012,-429.09119552,0.00020521,2]
[400638592,1767757843021,-1000.0,0.00020521,2]
[400638594,1767757843030,-168.53464326,0.00020521,2]
[400638596,1767757843039,-501.05787152,0.00020521,2]
[400638598,1767757843049,-1000.0,0.00020521,2]
[400638600,1767757843058,-195.06667749,0.00020521,2]
[400638601,1767757843068,-578.02071049,0.00020521,2]
[400638604,1767757843078,-1000.0,0.00020521,2]
[400638606,1767757843088,-1000.0,0.00020521,2]
[400638608,1767757843097,-1000.94146496,0.00020521,2]
[400638610,1767757843106,-1000.0,0.00020521,2]
[400638612,1767757843116,-690.88377587,0.00020521,2]
[400638614,1767757843126,-1000.0,0.00020521,2]
[400638616,1767757843136,-1000.0,0.00020521,2]
[400638618,1767757843146,-1000.0,0.00020521,2]
[400638620,1767757843156,-1000.0,0.00020521,2]
[400638622,1767757843166,-398.03125352,0.00020521,2]
[400638624,1767757843176,-1000.0,0.00020521,2]
[400638626,1767757843186,-1000.0,0.00020521,2]
[400638628,1767757843195,-1000.0,0.00020521,2]
[400638630,1767757843204,-1000.0,0.00020521,2]
[400638632,1767757843213,-1000.0,0.00020521,2]
[400638634,1767757843225,-1000.0,0.00020521,2]
[400638636,1767757843234,-1087.72916305,0.00020521,2]
[400638638,1767757843243,-1000.0,0.00020521,2]
[400638640,1767757843252,-570.66707455,0.00020521,2]
[400638642,1767757843261,-1000.0,0.00020521,2]
[400638644,1767757843271,-151.0,0.00020545,2]
[400638646,1767757843281,-870.0,0.00020548,2]
[400638648,1767757843290,-3000.0,0.00020712,2]
[400638650,1767757843300,-2824.17567872,0.00020712,2]
[400638652,1767757843309,-3919.6453573,0.00020798,2]
[400638654,1767757843320,-10001.52394905,0.000209,30]
[400638656,1767757843329,-300.0,0.00020973,2]
[400638658,1767757843338,-163.81782286,0.00020973,2]
[400638660,1767757843348,-133336.37880376,0.0002099,2]
[400638662,1767757843358,-20000.0,0.00021,2]
[400638664,1767757843367,-1191.30962725,0.00021,2]
[400638666,1767757843376,-196.6355594,0.00021,2]
[400638668,1767757843385,-160.0,0.00021,7]
[400638670,1767757843396,-182.79,0.00021047,2]
[400638672,1767757843404,-4000.66,0.00021068,2]
[400638674,1767757843414,-1500.0,0.00021068,2]
[400638676,1767757843426,-1500.0,0.00021068,2]
[400638678,1767757843435,-1005.68975855,0.00021068,2]
[400638680,1767757843444,-1500.0,0.00021068,2]
[400638682,1767757843454,-1500.0,0.00021068,2]
[400638684,1767757843466,-507.266222,0.00021068,2]
[400638686,1767757843475,-1500.0,0.00021068,2]
[400638688,1767757843484,-1500.0,0.00021068,2]
[400638690,1767757843493,-1500.0,0.00021068,2]
[400638692,1767757843504,-1500.0,0.00021068,2]
[400638694,1767757843514,-1503.89366239,0.00021068,2]
[400638696,1767757843523,-1500.0,0.00021068,2]
[400638698,1767757843532,-280.94046828,0.00021068,2]
[400638700,1767757843541,-1500.0,0.00021068,2]
[400638702,1767757843550,-1500.0,0.00021068,2]
[400638704,1767757843559,-1500.0,0.00021068,2]
[400638706,1767757843569,-1500.0,0.00021068,2]
[400638708,1767757843578,-1500.0,0.00021068,2]
[400638710,1767757843588,-1500.0,0.00021068,2]
[400638712,1767757843598,-1500.0,0.00021068,2]
[400638714,1767757843606,-1500.0,0.00021068,2]
[400638716,1767757843616,-1507.33238453,0.00021068,2]
[400638718,1767757843625,-525.47376177,0.00021068,2]
[400638720,1767757843634,-1500.0,0.00021068,2]
[400638721,1767757843643,-1500.0,0.00021068,2]
[400638723,1767757843653,-1269.22657261,0.00021068,2]
[400638725,1767757843662,-1500.0,0.00021068,2]
[400638727,1767757843671,-1500.0,0.00021068,2]
[400638729,1767757843680,-1500.0,0.00021068,2]
[400638731,1767757843688,-1500.0,0.00021068,2]
[400638733,1767757843697,-1500.0,0.00021068,2]
[400638735,1767757843706,-1500.0,0.00021068,2]
[400638737,1767757843716,-681.8114728,0.00021068,2]
[400638739,1767757843725,-505.94187575,0.00021068,2]
[400638741,1767757843734,-1500.0,0.00021068,2]
[400638743,1767757843743,-1500.0,0.00021068,2]
[400638745,1767757843752,-173.79,0.00021074,2]
[400638747,1767757843761,-454.0,0.00021161,2]
[400638749,1767757843771,-3500.0,0.0002126,2]
[400638751,1767757843780,-231.79388186,0.00021284,2]
[400638753,1767757843789,-162.8587207,0.00021467,2]
[400638755,1767757843798,-3292.0,0.00021481,2]
[400638757,1767757843807,-52813.06967648,0.000215,2]
[400638759,1767757843818,-221.79455944,0.000215,2]
[400638761,1767757843828,-1852.42,0.00021588,2]
[400638763,1767757843837,-2000.0,0.00021616,2]
[400638765,1767757843846,-2000.0,0.00021616,2]
[400638767,1767757843856,-878.91784331,0.00021616,2]
[400638769,1767757843865,-2000.0,0.00021616,2]
[400638771,1767757843874,-1110.9578609,0.00021616,2]
[400638773,1767757843883,-2000.0,0.00021616,2]
[400638775,1767757843893,-353.03322142,0.00021616,2]
[400638777,1767757843903,-2000.0,0.00021616,2]
[400638779,1767757843912,-2000.0,0.00021616,2]
[400638781,1767757843922,-2000.0,0.00021616,2]
[400638783,1767757843932,-926.30074091,0.00021616,2]
[400638786,1767757843942,-504.6314522,0.00021616,2]
[400638788,1767757843951,-1095.38439696,0.00021616,2]
[400638790,1767757843961,-513.61651558,0.00021616,2]
[400638792,1767757843971,-2000.0,0.00021616,2]
[400638794,1767757843980,-630.42266667,0.00021616,2]
[400638795,1767757843989,-2000.0,0.00021616,2]
[400638797,1767757844000,-502.02787874,0.00021616,2]
[400638799,1767757844012,-2000.0,0.00021616,2]
[400638802,1767757844022,-509.85151383,0.00021616,2]
[400638804,1767757844031,-2000.0,0.00021616,2]
[400638806,1767757844041,-2000.0,0.00021616,2]
[400638808,1767757844050,-2000.0,0.00021616,2]
[400638810,1767757844060,-2000.0,0.00021616,2]
[400638812,1767757844069,-1949.1289913,0.00021616,2]
[400638814,1767757844078,-1972.18144004,0.00021616,2]
[400638816,1767757844088,-2000.0,0.00021616,2]
[400638818,1767757844097,-4000.0,0.00021808,2]
[400638820,1767757844106,-151.0,0.00021918,2]
[400638822,1767757844116,-500.0,0.00021918,2]
[400638824,1767757844125,-500.0,0.00021918,2]
[400638826,1767757844135,-500.0,0.00021918,2]
[400638828,1767757844144,-500.0,0.00021918,2]
[400638830,1767757844154,-500.0,0.00021918,2]
[400638832,1767757844163,-500.0,0.00021918,2]
[400638834,1767757844172,-500.0,0.00021918,2]
[400638836,1767757844181,-500.0,0.00021918,2]
[400638838,1767757844191,-500.0,0.00021918,2]
[400638840,1767757844200,-500.0,0.00021918,2]
[400638842,1767757844209,-500.0,0.00021918,2]
[400638843,1767757844218,-500.0,0.00021918,2]
[400638845,1767757844227,-562.41946658,0.00021918,2]
[400638847,1767757844237,-500.0,0.00021918,2]
[400638849,1767757844246,-500.0,0.00021918,2]
[400638851,1767757844256,-500.0,0.00021918,2]
[400638853,1767757844265,-500.0,0.00021918,2]
[400638855,1767757844274,-3147.31,0.0002192,2]
[400638857,1767757844284,-3147.31,0.0002192,2]
[400638859,1767757844293,-3147.31,0.0002192,2]
[400638861,1767757844302,-3147.31,0.0002192,2]
[400638863,1767757844311,-3147.31,0.0002192,2]
[400638865,1767757844320,-2908.9,0.00021935,2]
[400638867,1767757844330,-175.6,0.00022,7]
[400638869,1767757844340,-1698.23,0.00022,2]
[400638871,1767757844349,-35224.11754918,0.00022,4]
[400638873,1767757844358,-1000.0,0.0002215,2]
[400638876,1767757844368,-1759.28401852,0.00022164,2]
[400638878,1767757844378,-500.0,0.00022164,2]
[400638880,1767757844388,-592.76567914,0.00022164,2]
[400638882,1767757844399,-1966.3681034,0.00022164,2]
[400638884,1767757844410,-1009.24355313,0.00022164,2]
[400638886,1767757844420,-503.18143071,0.00022164,2]
[400638887,1767757844431,-455.06203332,0.0002228,2]
[400638889,1767757844440,-1722.60793064,0.00022356,2]
[400638892,1767757844449,-981.62,0.00022751,2]
[400638894,1767757844459,-153.8005939,0.00023001,2]
[400638895,1767757844469,-182.79,0.00023152,2]
[400638897,1767757844478,-173.79,0.00023182,2]
[400638899,1767757844489,-3221.49,0.00023368,2]
[400638901,1767757844498,-9999.99,0.00023368,2]
[400638903,1767757844508,-299.99,0.00023368,7]
[400638905,1767757844517,-9999.99,0.00023368,2]
[400638907,1767757844526,-3174.75,0.00023368,2]
[400638909,1767757844536,-24027.7,0.00023368,2]
[400638911,1767757844545,-999.99,0.00023368,2]
[400638913,1767757844554,-150.99,0.00023368,2]
[400638915,1767757844564,-337.15,0.00023368,2]
[400638917,1767757844574,-10052.25,0.00023368,2]
[400638919,1767757844584,-529.93,0.00023368,5]
[400638921,1767757844593,-2941.0,0.00023598,2]
[400638923,1767757844603,-168.0,0.00023884,2]
[400638925,1767757844612,-168.0,0.00023996,2]
[400638927,1767757844622,-2908.9,0.00024093,2]
[400638929,1767757844632,-1698.23,0.000241,2]
[400638931,1767757844641,-168.0,0.00024101,2]
[400638933,1767757844651,-168.0,0.00024115,2]
[400638935,1767757844661,-1000.0,0.00024163,2]
[400638937,1767757844670,-168.0,0.00024392,2]
[400638939,1767757844679,-168.0,0.00024393,2]
[400638941,1767757844688,-436.0,0.0002445,2]
[400638943,1767757844699,-168.0,0.00024559,2]
[400638945,1767757844708,-5000.0,0.00024645,2]
[400638947,1767757844717,-1000.0,0.00024658,2]
[400638949,1767757844727,-151.0,0.00024658,2]
[400638951,1767757844737,-3240.0,0.00024658,2]
[400638953,1767757844746,-151.0,0.00024658,2]
[400638955,1767757844755,-1500.0,0.0002473,2]
[400638957,1767757844764,-1500.0,0.0002473,2]
[400638959,1767757844774,-1500.0,0.0002473,2]
[400638961,1767757844782,-1500.0,0.0002473,2]
[400638963,1767757844792,-1500.0,0.0002473,2]
[400638965,1767757844800,-1500.0,0.0002473,2]
[400638967,1767757844810,-2000.0,0.0002473,2]
[400638969,1767757844819,-957.13206838,0.0002473,2]
[400638971,1767757844828,-2000.0,0.0002473,2]
[400638973,1767757844837,-574.12855637,0.0002473,2]
[400638975,1767757844846,-2000.0,0.0002473,2]
[400638977,1767757844855,-1633.50600033,0.0002473,2]
[400638979,1767757844864,-250.0,0.0002473,2]
[400638981,1767757844873,-200.0,0.0002473,2]
[400638983,1767757844882,-207.4,0.0002473,2]
[400638985,1767757844891,-215.0738,0.0002473,2]
[400638987,1767757844900,-223.0315306,0.0002473,2]
[400638989,1767757844909,-231.28369723,0.0002473,2]
[400638991,1767757844918,-239.84119403,0.0002473,2]
[400638993,1767757844928,-248.71531821,0.0002473,2]
[400638995,1767757844937,-257.91778498,0.0002473,2]
[400638997,1767757844946,-267.46074303,0.0002473,2]
[400638999,1767757844956,-277.35679052,0.0002473,2]
[400639001,1767757844965,-168.0,0.0002475,2]
[400639003,1767757844974,-500.0,0.00024756,2]
[400639005,1767757844983,-151.0,0.000249,7]
[400639007,1767757844992,-1948.565341,0.000249,7]
[400639009,1767757845002,-178.256754,0.000249,7]
[400639011,1767757845011,-1948.565341,0.000249,7]
[400639013,1767757845020,-178.256754,0.000249,7]
[400639015,1767757845030,-1948.565341,0.000249,7]
[400639017,1767757845039,-178.256754,0.000249,7]
[400639019,1767757845047,-1948.565341,0.000249,7]
[400639020,1767757845056,-151.0,0.000249,7]
[400639022,1767757845066,-178.256754,0.000249,7]
[400639024,1767757845077,-151.0,0.000249,7]
[400639026,1767757845087,-242.653987,0.000249,7]
[400639028,1767757845096,-242.653987,0.000249,7]
[400639030,1767757845105,-242.653987,0.000249,7]
[400639032,1767757845114,-242.653987,0.000249,7]
[400639034,1767757845124,-158.404364,0.000249,7]
[400639037,1767757845133,-158.404364,0.000249,7]
[400639038,1767757845142,-158.404364,0.000249,7]
[400639040,1767757845152,-158.404364,0.000249,7]
[400639042,1767757845161,-438.390792,0.000249,2]
[400639044,1767757845171,-438.390792,0.000249,2]
[400639046,1767757845180,-438.390792,0.000249,2]
[400639048,1767757845190,-438.390792,0.000249,2]
[400639050,1767757845199,-151.0,0.000249,7]
[400639051,1767757845208,-151.0,0.000249,7]
[400639052,1767757845217,-151.0,0.000249,7]
[400639053,1767757845227,-181.958378,0.000249,7]
[400639054,1767757845235,-181.958378,0.000249,7]
[400639055,1767757845244,-181.958378,0.000249,7]
[400639056,1767757845254,-181.958378,0.000249,7]
[400639057,1767757845264,-157.892488,0.000249,7]
[400639058,1767757845273,-157.892488,0.000249,7]
[400639059,1767757845283,-165.690399,0.000249,7]
[400639060,1767757845293,-157.892488,0.000249,7]
[400639061,1767757845302,-157.892488,0.000249,7]
[400639063,1767757845312,-1770.52194242,0.000249,3]
[400639065,1767757845322,-151.0,0.000249,7]
[400639067,1767757845331,-151.0,0.000249,7]
[400639069,1767757845340,-151.0,0.000249,7]
[400639071,1767757845349,-168.0,0.00024983,2]
[400639073,1767757845358,-500.0,0.00025,7]
[400639075,1767757845367,-436.0,0.00025104,2]
[400639077,1767757845376,-168.0,0.00025155,2]
[400639079,1767757845385,-168.0,0.00025191,2]
[400639081,1767757845395,-168.0,0.00025193,2]
[400639083,1767757845404,-436.0,0.00025207,2]
[400639085,1767757845413,-595.37131296,0.00025278,2]
[400639088,1767757845428,-173.79,0.00025289,2]
[400639090,1767757845437,-168.0,0.00025477,2]
[400639092,1767757845446,-168.0,0.00025535,2]
[400639094,1767757845455,-1698.23,0.000256,2]
[400639098,1767757845466,-168.0,0.00025706,2]
[400639100,1767757845475,-231.79388186,0.00025708,2]
[400639103,1767757845485,-168.0,0.00025739,2]
[400639106,1767757845496,-436.0,0.00025747,7]
[400639109,1767757845505,-209.14,0.00025753,14]
[400639112,1767757845515,-2000.0,0.000258,2]
[400639114,1767757845524,-441.05566629,0.00025826,2]
[400639116,1767757845535,-168.0,0.00025874,2]
[400639118,1767757845544,-168.0,0.00025982,2]
[400639120,1767757845554,-5279.0,0.00026067,2]
[400639122,1767757845562,-162.8587207,0.00026075,2]
[400639124,1767757845572,-287.61899177,0.00026099,2]
[400639126,1767757845580,-436.0,0.00026219,2]
[400639128,1767757845590,-2908.9,0.0002625,2]
[400639130,1767757845600,-187.84,0.00026361,2]
[400639132,1767757845610,-632.0,0.0002639,2]
[400639134,1767757845619,-455.06203332,0.0002666,2]
[400639136,1767757845629,-436.0,0.00026739,2]
[400639138,1767757845638,-150.0,0.00027369,2]
[400639140,1767757845648,-173.79,0.00027397,2]
[400639142,1767757845658,-377.0,0.00027397,6]
[400639144,1767757845668,-383.6,0.00027397,7]
[400639146,1767757845677,-453.2,0.00027397,2]
[400639148,1767757845687,-352.2,0.00027397,4]
[400639150,1767757845696,-500.0,0.00027397,20]
[400639152,1767757845705,-600.04,0.00027397,30]
[400639154,1767757845714,-151.0,0.00027397,7]
[400639156,1767757845723,-151.0,0.00027397,7]
[400639158,1767757845732,-151.0,0.00027397,7]
[400639160,1767757845742,-151.0,0.00027397,7]
[400639162,1767757845751,-151.0,0.00027397,7]
[400639164,1767757845760,-151.0,0.00027397,7]
[400639166,1767757845769,-151.0,0.00027397,7]
[400639168,1767757845778,-151.0,0.00027397,7]
[400639170,1767757845787,-151.0,0.00027397,7]
[400639172,1767757845796,-246.493531,0.00027397,7]
[400639174,1767757845805,-298.26089446,0.00027468,2]
[400639176,1767757845814,-165.28099371,0.00027547,2]
[400639178,1767757845823,-5511.46,0.00027671,2]
[400639180,1767757845832,-8905.05105883,0.00028,2]
[400639182,1767757845842,-150.3791934,0.00028378,2]
[400639184,1767757845851,-172.98219992,0.00028378,2]
[400639186,1767757845860,-2908.9,0.00028407,2]
[400639188,1767757845870,-151.0,0.00028407,7]
[400639190,1767757845879,-151.0,0.00028407,7]
[400639192,1767757845887,-151.0,0.00028407,7]
[400639194,1767757845897,-236.983929,0.00028407,7]
[400639196,1767757845906,-236.983929,0.00028407,7]
[400639198,1767757845915,-236.983929,0.00028407,7]
[400639200,1767757845925,-151.0,0.00028407,7]
[400639202,1767757845934,-236.983929,0.00028407,7]
[400639203,1767757845943,-303.816362,0.00028407,7]
[400639205,1767757845953,-303.816362,0.00028407,7]
[400639207,1767757845964,-303.816362,0.00028407,7]
[400639209,1767757845973,-303.816362,0.00028407,7]
[400639211,1767757845983,-1698.23,0.000287,2]
[400639213,1767757845992,-151.0,0.000287,7]
[400639215,1767757846002,-151.0,0.000287,7]
[400639217,1767757846012,-172.98219992,0.0002872,17]
[400639219,1767757846021,-150.3791934,0.00028777,20]
[400639221,1767757846032,-309.29654756,0.00028837,2]